Body,Body Name,Date,TransNo,Amount �(Excl VAT),Supplier Name,Description,Expense Area,Expense Type,Expense Code
http://statistics.data.gov.uk/id/local-authority/00BF,London Borough of Sutton,05/11/2014,1195235,20,Oystercard,Staff travel - CARD for LO Project Officer,Children Young People and Learning Directorate,Staff Travelling Expenses,E130
http://statistics.data.gov.uk/id/local-authority/00BF,London Borough of Sutton,06/11/2014,1195235,20,Oystercard,Staff travel - CARD for LO Project Officer,Children Young People and Learning Directorate,Staff Travelling Expenses,E130
http://statistics.data.gov.uk/id/local-authority/00BF,London Borough of Sutton,17/11/2014,1195159,62.71,Sainsburys,grocery shopping for Play Centres,Children Young People and Learning Directorate,Provisions - General,F150
http://statistics.data.gov.uk/id/local-authority/00BF,London Borough of Sutton,03/11/2014,1195159,52.33,Sainsburys,grocery shopping for Play Centres,Children Young People and Learning Directorate,Provisions - General,F150
http://statistics.data.gov.uk/id/local-authority/00BF,London Borough of Sutton,03/11/2014,1195159,-3.2,Sainsburys,grocery shopping for Play Centres refund from,Children Young People and Learning Directorate,Provisions - General,F150
http://statistics.data.gov.uk/id/local-authority/00BF,London Borough of Sutton,10/11/2014,1195159,58.19,Sainsburys,grocery shopping for Play Centres,Children Young People and Learning Directorate,Provisions - General,F150
http://statistics.data.gov.uk/id/local-authority/00BF,London Borough of Sutton,25/11/2014,1195159,42.2,Sainsburys,grocery shopping for Play Centres,Children Young People and Learning Directorate,Provisions - General,F150
http://statistics.data.gov.uk/id/local-authority/00BF,London Borough of Sutton,25/11/2014,1195159,342.82,Sainsburys,grocery shopping for Play Centres,Children Young People and Learning Directorate,Provisions - General,F150
http://statistics.data.gov.uk/id/local-authority/00BF,London Borough of Sutton,04/11/2014,1195157,83.03,The Trainline.com,Return Ticket Staff,Children Young People and Learning Directorate,Travelling and Subsistence Allowances,A530
http://statistics.data.gov.uk/id/local-authority/00BF,London Borough of Sutton,05/11/2014,1195157,206.14,The Trainline.com,Return Ticket Staff,Children Young People and Learning Directorate,Travelling and Subsistence Allowances,A530
http://statistics.data.gov.uk/id/local-authority/00BF,London Borough of Sutton,20/11/2014,1195157,243.86,British Airways,Return flight staff,Children Young People and Learning Directorate,Travelling and Subsistence Allowances,A530
http://statistics.data.gov.uk/id/local-authority/00BF,London Borough of Sutton,20/12/2014,1195157,47.23,The Trainline.com,Return Ticket Staff,Children Young People and Learning Directorate,Travelling and Subsistence Allowances,A530
http://statistics.data.gov.uk/id/local-authority/00BF,London Borough of Sutton,13/11/2014,1195235,113.83,Trainline,CWD Staff travel,Children Young People and Learning Directorate,Staff Travelling Expenses,E130
http://statistics.data.gov.uk/id/local-authority/00BF,London Borough of Sutton,20/11/2014,1195235,88.74,Trainline,CWD Staff travel,Children Young People and Learning Directorate,Staff Travelling Expenses,E130
http://statistics.data.gov.uk/id/local-authority/00BF,London Borough of Sutton,27/10/2014,1195234,20,Oystercard,CWD Staff travel,Children Young People and Learning Directorate,Staff Travelling Expenses,E130
http://statistics.data.gov.uk/id/local-authority/00BF,London Borough of Sutton,29/10/2014,1195234,20,Oystercard,CWD Staff travel,Children Young People and Learning Directorate,Staff Travelling Expenses,E130
http://statistics.data.gov.uk/id/local-authority/00BF,London Borough of Sutton,16/10/2014,1195234,37.54,Trainline,CWD client travel,Children Young People and Learning Directorate,Staff Travelling Expenses,E130
http://statistics.data.gov.uk/id/local-authority/00BF,London Borough of Sutton,16/10/2014,1195234,57.02,Trainline,CWD Client travel,Children Young People and Learning Directorate,Staff Travelling Expenses,E130
http://statistics.data.gov.uk/id/local-authority/00BF,London Borough of Sutton,23/10/2014,1195234,88.74,Trainline,CWD staff travel,Children Young People and Learning Directorate,Staff Travelling Expenses,E130
http://statistics.data.gov.uk/id/local-authority/00BF,London Borough of Sutton,11/12/2014,1195235,33.5,Marks and Spencer,30 Vouchers & post for Volunteer,Children Young People and Learning Directorate,Materials - General,F100
http://statistics.data.gov.uk/id/local-authority/00BF,London Borough of Sutton,30/09/2014,1195234,174.1,High Street Vouchers,Gift Tokens for volunteers parent facilitators,Children Young People and Learning Directorate,Materials - General,F100
http://statistics.data.gov.uk/id/local-authority/00BF,London Borough of Sutton,08/10/2014,1195234,142.74,National pen promotion,Open day event - pens for familes,Children Young People and Learning Directorate,Materials - General,F100
http://statistics.data.gov.uk/id/local-authority/00BF,London Borough of Sutton,29/10/2014,1195234,16.66,Amazon,Sleep Clock (for sleep counselling),Children Young People and Learning Directorate,Provisions - General,F150
http://statistics.data.gov.uk/id/local-authority/00BF,London Borough of Sutton,16/10/2014,1195234,300,Charriots All Terrain,Disabled Buggy for family (reimbursed by charity),Children Young People and Learning Directorate,Provisions - General,F150
http://statistics.data.gov.uk/id/local-authority/00BF,London Borough of Sutton,05/11/2014,1195235,41.92,Trainline,CWD Client travel,Children Young People and Learning Directorate,C.C.A Travel & Subsistance,H212
http://statistics.data.gov.uk/id/local-authority/00BF,London Borough of Sutton,13/11/2014,1195235,57.02,Trainline,CWD Client travel,Children Young People and Learning Directorate,C.C.A Travel & Subsistance,H212
http://statistics.data.gov.uk/id/local-authority/00BF,London Borough of Sutton,25/11/2014,1195235,73.54,Trainline,CWD Client travel,Children Young People and Learning Directorate,C.C.A Travel & Subsistance,H212
http://statistics.data.gov.uk/id/local-authority/00BF,London Borough of Sutton,27/11/2014,1195235,57.02,Trainline,CWD Client travel,Children Young People and Learning Directorate,C.C.A Travel & Subsistance,H212
http://statistics.data.gov.uk/id/local-authority/00BF,London Borough of Sutton,24/10/2014,1195234,194.11,Trainline,CWD Client travel,Children Young People and Learning Directorate,C.C.A Travel & Subsistance,H212
http://statistics.data.gov.uk/id/local-authority/00BF,London Borough of Sutton,30/10/2014,1195234,57.02,Trainline,CWD Client travel,Children Young People and Learning Directorate,C.C.A Travel & Subsistance,H212
http://statistics.data.gov.uk/id/local-authority/00BF,London Borough of Sutton,08/10/2014,1195234,60.23,Vista print uk,Open day event - fridge magnets for families,Children Young People and Learning Directorate,Materials - General,F100
http://statistics.data.gov.uk/id/local-authority/00BF,London Borough of Sutton,03/10/2014,1195164,565.62,UKBA,Visa fee GWF033104494,Children Young People and Learning Directorate,Recruitment Expenses,A531
http://statistics.data.gov.uk/id/local-authority/00BF,London Borough of Sutton,04/11/2014,1195154,125,RIBA,NEC3 Standard Contracts,Environment and Neighbourhoods Directorate,General Office Expenses,F235
http://statistics.data.gov.uk/id/local-authority/00BF,London Borough of Sutton,14/11/2014,1195154,234.11,Amazon,Camera for Enforcement,Environment and Neighbourhoods Directorate,IT Equipment - Repair and Maintenance,F382
http://statistics.data.gov.uk/id/local-authority/00BF,London Borough of Sutton,12/11/2014,1195251,16.67,Deptford Fund,Training Course on Older people,Environment and Neighbourhoods Directorate,Training - Course Fees,A520
http://statistics.data.gov.uk/id/local-authority/00BF,London Borough of Sutton,28/10/2014,1195238,213.2,Majestic Wine,WW1 exhibition launch,Environment and Neighbourhoods Directorate,Arts Programme,F306
http://statistics.data.gov.uk/id/local-authority/00BF,London Borough of Sutton,16/10/2014,1195238,1.6,Amazon,Whitehall children�s resources,Environment and Neighbourhoods Directorate,Records and Casettes,F007
http://statistics.data.gov.uk/id/local-authority/00BF,London Borough of Sutton,16/10/2014,1195238,12.1,Amazon,Whitehall children�s resources,Environment and Neighbourhoods Directorate,Records and Casettes,F007
http://statistics.data.gov.uk/id/local-authority/00BF,London Borough of Sutton,16/10/2014,1195238,4,Amazon,Whitehall children�s resources,Environment and Neighbourhoods Directorate,Records and Casettes,F007
http://statistics.data.gov.uk/id/local-authority/00BF,London Borough of Sutton,16/10/2014,1195238,1.22,Amazon,Whitehall children�s resources,Environment and Neighbourhoods Directorate,Records and Casettes,F007
http://statistics.data.gov.uk/id/local-authority/00BF,London Borough of Sutton,16/10/2014,1195238,8.97,Amazon,Whitehall children�s resources,Environment and Neighbourhoods Directorate,Records and Casettes,F007
http://statistics.data.gov.uk/id/local-authority/00BF,London Borough of Sutton,17/10/2014,1195238,5.94,Amazon,Whitehall children�s resources,Environment and Neighbourhoods Directorate,Records and Casettes,F007
http://statistics.data.gov.uk/id/local-authority/00BF,London Borough of Sutton,17/10/2014,1195238,21.29,Amazon,Whitehall children�s resources,Environment and Neighbourhoods Directorate,Records and Casettes,F007
http://statistics.data.gov.uk/id/local-authority/00BF,London Borough of Sutton,17/10/2014,1195238,7.77,Amazon,Whitehall children�s resources,Environment and Neighbourhoods Directorate,Records and Casettes,F007
http://statistics.data.gov.uk/id/local-authority/00BF,London Borough of Sutton,17/10/2014,1195238,20.03,Amazon,Whitehall children�s resources,Environment and Neighbourhoods Directorate,Records and Casettes,F007
http://statistics.data.gov.uk/id/local-authority/00BF,London Borough of Sutton,03/11/2014,1195238,19.76,MilkandMore.co.uk,milk deliveries,Environment and Neighbourhoods Directorate,Provisions - General,F150
http://statistics.data.gov.uk/id/local-authority/00BF,London Borough of Sutton,20/11/2014,1195155,17.46,Sainsburys,Citizenship refreshments,Environment and Neighbourhoods Directorate,Hospitality (VAT not Recoverable),F325
http://statistics.data.gov.uk/id/local-authority/00BF,London Borough of Sutton,09/11/2014,1195202,48.91,Mailchimp.comga United States,Web hosting,Resources Directorate,Fees - Computer Software,F384
http://statistics.data.gov.uk/id/local-authority/00BF,London Borough of Sutton,21/11/2014,1195159,20,TFL Oyster,top up of FABS Oyster Card,Resources Directorate,Travelling and Subsistence Allowances,A530
http://statistics.data.gov.uk/id/local-authority/00BF,London Borough of Sutton,22/11/2014,1195159,20,TFL Oyster,top up of FABS Oyster Card,Resources Directorate,Travelling and Subsistence Allowances,A530
http://statistics.data.gov.uk/id/local-authority/00BF,London Borough of Sutton,13/10/2014,1195164,184,UKBA,Visa fee,Resources Directorate,Travelling and Subsistence Allowances,A530
http://statistics.data.gov.uk/id/local-authority/00BF,London Borough of Sutton,04/11/2014,1195239,45,PAYPAL *SUTTONCHAMB,Event Speakers breakfasts,Resources Directorate,Refreshments,F155
http://statistics.data.gov.uk/id/local-authority/00BF,London Borough of Sutton,11/11/2014,1195154,90.47,Trainline.com,Travel RS MTC,Resources Directorate,Travelling and Subsistence Allowances,A530
http://statistics.data.gov.uk/id/local-authority/00BF,London Borough of Sutton,11/11/2014,1195154,186.66,Trainline.com,Travel IK MTC,Resources Directorate,Travelling and Subsistence Allowances,A530
http://statistics.data.gov.uk/id/local-authority/00BF,London Borough of Sutton,21/11/2014,1195154,593.2,KLM Partner,Travel RVDW MTC,Resources Directorate,Travelling and Subsistence Allowances,A530
http://statistics.data.gov.uk/id/local-authority/00BF,London Borough of Sutton,25/11/2014,1195154,210,SM1 Banners,MTC Seminar Package,Resources Directorate,Printing - General,F215
http://statistics.data.gov.uk/id/local-authority/00BF,London Borough of Sutton,24/11/2014,1195154,55.56,DHL,Post Conference Material to Cardiff MTC,Resources Directorate,Postages - General,F350
http://statistics.data.gov.uk/id/local-authority/00BF,London Borough of Sutton,11/11/2014,1195154,37.5,Cannon Cars,WS Travel CCTV Conference,Resources Directorate,Travelling and Subsistence Allowances,A530
http://statistics.data.gov.uk/id/local-authority/00BF,London Borough of Sutton,11/11/2014,1195154,2.5,Cannon Cars,WS Travel CCTV Conference booking fee,Resources Directorate,Travelling and Subsistence Allowances,A530
http://statistics.data.gov.uk/id/local-authority/00BF,London Borough of Sutton,14/11/2014,1195154,19.99,Maplin,TV Aerial Comms,Resources Directorate,IT Equipment - Repair and Maintenance,F382
http://statistics.data.gov.uk/id/local-authority/00BF,London Borough of Sutton,03/11/2014,1195154,159,Chartered Management,Membership GP,Resources Directorate,Subscriptions - General,F450
http://statistics.data.gov.uk/id/local-authority/00BF,London Borough of Sutton,07/11/2014,1195159,350,TFL Oyster,top up of Secretariat Oyster Card,Resources Directorate,Travelling and Subsistence Allowances,A530
http://statistics.data.gov.uk/id/local-authority/00BF,London Borough of Sutton,20/11/2014,1195159,50,TFL Oyster,top up of Secretariat Oyster Card,Resources Directorate,Travelling and Subsistence Allowances,A530
http://statistics.data.gov.uk/id/local-authority/00BF,London Borough of Sutton,01/11/2014,1195158,40,Oyster Autotopup,Oyster card top up,Resources Directorate,Travelling and Subsistence Allowances,A530
http://statistics.data.gov.uk/id/local-authority/00BF,London Borough of Sutton,15/11/2014,1195158,40,Oyster Bus Autotop,Oyster card top up,Resources Directorate,Travelling and Subsistence Allowances,A530
http://statistics.data.gov.uk/id/local-authority/00BF,London Borough of Sutton,25/11/2014,1195158,3.9,New Southern Railways,staff travel to/from court,Resources Directorate,Travelling and Subsistence Allowances,A530
http://statistics.data.gov.uk/id/local-authority/00BF,London Borough of Sutton,25/11/2014,1195150,3.59,NCP Ltd,parking Croydon Court,Resources Directorate,Staff Parking,A710
http://statistics.data.gov.uk/id/local-authority/00BF,London Borough of Sutton,06/11/2014,1195158,40,Oyster Bus Autotop,Oyster card top up,Resources Directorate,Travelling and Subsistence Allowances,A530
http://statistics.data.gov.uk/id/local-authority/00BF,London Borough of Sutton,19/11/2014,1195158,40,Oyster Autotopup,Oyster card top up,Resources Directorate,Travelling and Subsistence Allowances,A530
http://statistics.data.gov.uk/id/local-authority/00BF,London Borough of Sutton,04/11/2014,1195150,83.33,CII Group,Exam Fees BP,Resources Directorate,Training - Course Fees,A520
http://statistics.data.gov.uk/id/local-authority/00BF,London Borough of Sutton,17/11/2014,1195355,54.88,The Trainline.Com,Retrn Travel for SW to Crewkerne Somerset,Adult Social Services Housing and Health Directorate,Travelling and Subsistence Allowances,A530
http://statistics.data.gov.uk/id/local-authority/00BF,London Borough of Sutton,26/11/2014,1195355,49.88,The Trainline.Com,Return travel for SW to Doncaster,Adult Social Services Housing and Health Directorate,Travelling and Subsistence Allowances,A530
http://statistics.data.gov.uk/id/local-authority/00BF,London Borough of Sutton,20/11/2014,1195355,100,Office of Public Guardian,Assessment of Deputy Fee for MW approved by LB,Adult Social Services Housing and Health Directorate,Personal Requisites,F106
http://statistics.data.gov.uk/id/local-authority/00BF,London Borough of Sutton,04/11/2014,1195154,130,Amazon,Chargiong Cables for BECC,Chief Executive's Directorate,Equipment It,Y523
http://statistics.data.gov.uk/id/local-authority/00BF,London Borough of Sutton,06/11/2014,1195154,139.93,Amazon,USB Charging Hubs for BECC,Chief Executive's Directorate,Equipment It,Y523
http://statistics.data.gov.uk/id/local-authority/00BF,London Borough of Sutton,06/11/2014,1195154,14.84,Amazon,BECC Equipment,Chief Executive's Directorate,Equipment It,Y523
http://statistics.data.gov.uk/id/local-authority/00BF,London Borough of Sutton,11/11/2014,1195154,-4.85,Amazon,BECC Equipment Refund,Chief Executive's Directorate,Equipment It,Y523
http://statistics.data.gov.uk/id/local-authority/00BF,London Borough of Sutton,11/11/2014,1195154,-139.93,Amazon,USB Charging Hubs for BECC Refund,Chief Executive's Directorate,Equipment It,Y523
http://statistics.data.gov.uk/id/local-authority/00BF,London Borough of Sutton,11/11/2014,1195154,139.93,Amazon,USB Charging Hubs for BECC,Chief Executive's Directorate,Equipment It,Y523
http://statistics.data.gov.uk/id/local-authority/00BF,London Borough of Sutton,11/11/2014,1195154,4.85,Amazon,BECC Equipment,Chief Executive's Directorate,Equipment It,Y523
